fUST/lending_fUST_20241005
["ID","MTS","AMOUNT","RATE_DAILY","PERIOD"]
[339846007,1728059441474,-151.0,0.000162,2]
[339846008,1728059441484,-441.25036,0.000162,2]
[339846009,1728059441494,-441.25036,0.000162,2]
[339846010,1728059441504,-151.0,0.000162,2]
[339846011,1728059441516,-151.0,0.000162,2]
[339846012,1728059441527,-168.6839,0.000162,2]
[339846013,1728059441538,-151.0,0.000162,2]
[339846014,1728059441548,-293.308126,0.000162,2]
[339846015,1728059441558,-4982.90966,0.000162,2]
[339846016,1728059441568,-4982.90966,0.000162,2]
[339846017,1728059441578,-1168.57338105,0.000162,2]
[339846018,1728059441588,-3000.0,0.0001621,2]
[339846019,1728059441598,-151.0,0.0001621,2]
[339846020,1728059441607,-151.0,0.0001621,2]
[339846021,1728059441617,-151.0,0.0001621,2]
[339846022,1728059441629,-151.0,0.0001621,2]
[339846023,1728059441638,-744.97236,0.0001621,2]
[339846024,1728059441648,-744.97236,0.0001621,2]
[339846025,1728059441659,-910.465198,0.0001621,2]
[339846026,1728059441668,-910.465198,0.0001621,2]
[339846027,1728059441677,-4261.671301,0.0001621,2]
[339846028,1728059441687,-4261.671301,0.0001621,2]
[339846029,1728059441697,-3000.0,0.0001622,2]
[339846030,1728059441707,-3000.0,0.0001623,2]
[339846031,1728059441717,-3000.0,0.0001624,2]
[339846032,1728059441726,-244.93734927,0.00016247,2]
[339846033,1728059441736,-3000.0,0.0001625,2]
[339846034,1728059441745,-10048.2638033,0.0001625,2]
[339846035,1728059441756,-24792.7877038,0.0001625,2]
[339846036,1728059441766,-151.0,0.0001625,2]
[339846037,1728059441775,-197.865319,0.0001625,2]
[339846038,1728059441785,-151.0,0.0001625,2]
[339846039,1728059441794,-197.865319,0.0001625,2]
[339846040,1728059441805,-312.661788,0.0001625,2]
[339846041,1728059441814,-312.661788,0.0001625,2]
[339846042,1728059441823,-151.0,0.0001625,2]
[339846043,1728059441833,-151.0,0.0001625,2]
[339846044,1728059441842,-160.75988,0.0001626,2]
[339846045,1728059441852,-160.75988,0.0001626,2]
[339846046,1728059441862,-3000.0,0.0001626,2]
[339846047,1728059441873,-1103.5681704,0.0001626,2]
[339846048,1728059441882,-151.0,0.0001627,2]
[339846049,1728059441892,-151.0,0.0001627,2]
[339846050,1728059441901,-1623.02778587,0.0001627,2]
[339846056,1728059443362,-895.52358464,0.0001627,2]
[339846057,1728059443535,-481.44862949,0.0001627,2]
[339846058,1728059443546,-1997.00319853,0.0001627,2]
[339846061,1728059443559,-2430.22030228,0.0001627,2]
[339846073,1728059446389,-351.59094771,0.0001614,2]
[339846074,1728059446400,-514.07,0.0001614,2]
[339846077,1728059781055,21724.98,0.00010209,2]
[339846113,1728060632450,-151.1,0.00010959,2]
[339846115,1728060632461,-755.5,0.00010959,2]
[339846117,1728060632472,-161.327424,0.00012603,2]
[339846118,1728060632481,-227.008195,0.00013699,2]
[339846119,1728060632493,-3000.0,0.00013759,2]
[339846120,1728060632504,-227.07944057,0.00013942,2]
[339846121,1728060632513,-300.0,0.00014042,2]
[339846122,1728060632523,-300.0,0.00014042,2]
[339846123,1728060632533,-7828.09856192,0.00014043,2]
[339846167,1728060638431,-17071.90143808,0.00014043,2]
[339846169,1728060638442,-160.95860488,0.00014219,2]
[339846170,1728060638453,-2777.73739745,0.00014219,2]
[339846171,1728060638463,-2822.9382758,0.00014303,2]
[339846172,1728060638473,-187.8836,0.00014319,2]
[339846173,1728060638483,-184.51,0.000144,2]
[339846174,1728060638492,-187.8836,0.00014692,2]
[339846175,1728060638503,-187.8836,0.00015065,2]
[339846176,1728060638512,-420.0,0.00015384,2]
[339846177,1728060638523,-420.0,0.00015447,2]
[339846178,1728060638536,-174.647,0.00015448,2]
[339846179,1728060638547,-191.4688782,0.0001545,2]
[339846180,1728060638557,-153.278941,0.000159,2]
[339846181,1728060638567,-112.14156314,0.00015999,2]
[339846182,1728060638579,-387.85843686,0.00015999,2]
[339846183,1728060638589,-193.09299392,0.00015999,2]
[339846184,1728060638599,-500.0,0.00015999,2]
[339846185,1728060638610,-162.18662534,0.00015999,2]
[339846186,1728060638623,-10978.0,0.00016,2]
[339846187,1728060638633,-739.0,0.00016,2]
[339846188,1728060638643,-3000.0,0.00016,2]
[339846189,1728060638654,-162.803257,0.00016,2]
[339846190,1728060638664,-185.0,0.00016,2]
[339846191,1728060638673,-3000.0,0.0001601,2]
[339846192,1728060638685,-3000.0,0.0001602,2]
[339846193,1728060638696,-3000.0,0.0001603,2]
[339846194,1728060638706,-3000.0,0.0001604,2]
[339846195,1728060638716,-3000.0,0.0001605,2]
[339846196,1728060638725,-3000.0,0.0001606,2]
[339846197,1728060638735,-3000.0,0.0001607,2]
[339846198,1728060638747,-3000.0,0.0001608,2]
[339846199,1728060638756,-3000.0,0.0001609,2]
[339846200,1728060638766,-3000.0,0.000161,2]
[339846201,1728060638776,-3000.0,0.0001611,2]
[339846202,1728060638786,-3000.0,0.0001612,2]
[339846203,1728060638796,-3000.0,0.0001613,2]
[339846204,1728060638806,-500.0,0.0001614,2]
[339846205,1728060638818,-3000.0,0.0001614,2]
[339846206,1728060638828,-7806.66056632,0.0001614,2]
[339846207,1728060638838,-3000.0,0.0001615,2]
[339846208,1728060638847,-3000.0,0.0001616,2]
[339846209,1728060638857,-222.62653762,0.00016169,2]
[339846210,1728060638867,-197.38774856,0.00016169,2]
[339846211,1728060638881,-500.0,0.00016169,2]
[339846212,1728060638891,-500.0,0.00016169,2]
[339846213,1728060638902,-183.58492349,0.00016169,2]
[339846214,1728060638913,-500.0,0.00016169,2]
[339846215,1728060638925,-500.0,0.00016169,2]
[339846216,1728060638937,-222.46726858,0.00016169,2]
[339846217,1728060638947,-500.0,0.00016169,2]
[339846218,1728060638958,-167.98517483,0.00016169,2]
[339846219,1728060638967,-3000.0,0.0001617,2]
[339846220,1728060638978,-28945.1729164,0.0001617,2]
[339846221,1728060638987,-3000.0,0.0001618,2]
[339846222,1728060638997,-3000.0,0.0001619,2]
[339846223,1728060639008,-3000.0,0.000162,2]
[339846224,1728060639019,-3000.0,0.0001621,2]
[339846225,1728060639029,-3000.0,0.0001622,2]
[339846226,1728060639040,-3000.0,0.0001623,2]
[339846227,1728060639050,-2122.81564951,0.0001623,2]
[339846228,1728060639062,-5683.84491681,0.0001623,2]
[339846229,1728060639072,-17392.82282428,0.0001623,2]
[339846230,1728060639085,-2382.67585133,0.0001623,2]
[339846231,1728060639097,-9169.67424079,0.0001623,2]
[339846232,1728060639107,-3000.0,0.0001624,2]
[339846233,1728060639116,-200.0,0.00016245,3]
[339846234,1728060639128,-3000.0,0.0001625,2]
[339846235,1728060639137,-200.0,0.00016256,3]
[339846236,1728060639147,-3000.0,0.0001626,2]
[339846237,1728060639157,-213.81786702,0.00016269,2]
[339846238,1728060639167,-857.73652216,0.00016269,2]
[339846239,1728060639176,-3000.0,0.0001627,2]
[339846240,1728060639186,-3000.0,0.0001628,2]
[339846241,1728060639195,-3000.0,0.0001629,2]
[339846242,1728060639205,-3000.0,0.000163,2]
[339846243,1728060639215,-3000.0,0.0001631,2]
[339846244,1728060639225,-3000.0,0.0001632,2]
[339846245,1728060639234,-7806.66056632,0.0001632,2]
[339846246,1728060639243,-3000.0,0.0001633,2]
[339846247,1728060639253,-150.0,0.00016338,2]
[339846248,1728060639262,-3000.0,0.0001634,2]
[339846249,1728060639272,-3000.0,0.0001635,2]
[339846250,1728060639281,-3000.0,0.0001636,2]
[339846251,1728060639290,-1000.0,0.0001636,2]
[339846252,1728060639300,-3000.0,0.0001637,2]
[339846253,1728060639312,-28945.1729164,0.0001637,2]
[339846254,1728060639323,-3000.0,0.0001638,2]
[339846255,1728060639333,-3000.0,0.0001639,2]
[339846256,1728060639343,-502.0085074,0.00016396,2]
[339846257,1728060639352,-200.1605045,0.00016396,2]
[339846258,1728060639362,-500.0,0.00016396,2]
[339846259,1728060639371,-500.0,0.00016396,2]
[339846260,1728060639382,-1320.79676243,0.000164,2]
[339846261,1728060639391,-3000.0,0.000164,2]
[339846262,1728060639402,-3000.0,0.0001641,2]
[339846263,1728060639413,-7806.66056632,0.0001641,2]
[339846264,1728060639423,-3000.0,0.0001642,2]
[339846265,1728060639432,-28945.1729164,0.0001642,2]
[339846266,1728060639442,-150.0,0.0001642,2]
[339846267,1728060639452,-7806.66056632,0.00016428,2]
[339846268,1728060639462,-3000.0,0.0001643,2]
[339846269,1728060639472,-151.910667,0.00016438,2]
[339846270,1728060639481,-500.0,0.00016438,2]
[339846271,1728060639491,-510.30589487,0.00016438,2]
[339846272,1728060639500,-2000.0,0.00016438,2]
[339846273,1728060639509,-2000.0,0.00016438,2]
[339846274,1728060639519,-2000.0,0.00016438,2]
[339846275,1728060639528,-2000.0,0.00016438,2]
[339846276,1728060639537,-2000.0,0.00016438,2]
[339846277,1728060639547,-2000.0,0.00016438,2]
[339846278,1728060639556,-2000.0,0.00016438,2]
[339846279,1728060639566,-2000.0,0.00016438,2]
[339846280,1728060639576,-2000.0,0.00016438,2]
[339846281,1728060639586,-2000.0,0.00016438,2]
[339846282,1728060639599,-2000.0,0.00016438,2]
[339846283,1728060639608,-2000.0,0.00016438,2]
[339846284,1728060639619,-2000.0,0.00016438,2]
[339846285,1728060639632,-2000.0,0.00016438,2]
[339846286,1728060639642,-2000.0,0.00016438,2]
[339846287,1728060639654,-2000.0,0.00016438,2]
[339846288,1728060639664,-299.1,0.00016438,2]
[339846289,1728060639673,-151.0,0.00016438,2]
[339846290,1728060639683,-151.0,0.00016438,2]
[339846291,1728060639693,-151.0,0.00016438,2]
[339846292,1728060639702,-151.0,0.00016438,2]
[339846293,1728060639711,-151.0,0.00016438,2]
[339846294,1728060639721,-840.208446,0.00016438,2]
[339846295,1728060639730,-840.208446,0.00016438,2]
[339846296,1728060639741,-151.0,0.00016438,2]
[339846297,1728060639754,-182.65246,0.00016438,2]
[339846298,1728060639764,-182.65246,0.00016438,2]
[339846299,1728060639774,-1095.244682,0.00016438,2]
[339846300,1728060639783,-1095.244682,0.00016438,2]
[339846301,1728060639796,-3000.0,0.0001644,2]
[339846302,1728060639808,-3000.0,0.0001645,2]
[339846303,1728060639818,-7806.66056632,0.0001645,2]
[339846304,1728060639829,-28945.1729164,0.0001645,2]
[339846305,1728060639839,-1095.244682,0.0001645,2]
[339846306,1728060639849,-1095.244682,0.0001645,2]
[339846307,1728060639859,-28945.1729164,0.0001645,2]
[339846308,1728060639871,-3000.0,0.0001646,2]
[339846309,1728060639881,-151.0,0.0001646,2]
[339846310,1728060639890,-165.915027,0.0001646,2]
[339846311,1728060639900,-165.915027,0.0001646,2]
[339846313,1728060639909,-151.0,0.0001646,2]
[339846315,1728060639919,-151.0,0.0001646,2]
[339846317,1728060639929,-151.0,0.0001646,2]
[339846318,1728060639939,-4499.718694,0.0001646,2]
[339846319,1728060639949,-4499.718694,0.0001646,2]
[339846321,1728060639958,-838.87056,0.0001646,2]
[339846322,1728060639967,-838.87056,0.0001646,2]
[339846323,1728060639978,-3850.604171,0.0001646,2]
[339846324,1728060639987,-3850.604171,0.0001646,2]
[339846325,1728060639997,-151.0,0.0001646,2]
[339846326,1728060640007,-151.0,0.0001646,2]
[339846327,1728060640016,-397.125324,0.0001646,2]
[339846329,1728060640027,-397.125324,0.0001646,2]
[339846331,1728060640036,-151.0,0.0001646,2]
[339846332,1728060640046,-151.0,0.0001646,2]
[339846333,1728060640056,-151.0,0.0001646,2]
[339846334,1728060640066,-274.88947,0.0001646,2]
[339846335,1728060640076,-210.297995,0.0001646,2]
[339846336,1728060640086,-210.297995,0.0001646,2]
[339846337,1728060640095,-151.0,0.0001646,2]
[339846338,1728060640104,-685.575124,0.0001646,2]
[339846339,1728060640113,-685.575124,0.0001646,2]
[339846340,1728060640123,-151.0,0.0001646,2]
[339846341,1728060640133,-151.0,0.0001646,2]
[339846342,1728060640142,-151.0,0.0001646,2]
[339846343,1728060640151,-151.0,0.0001646,2]
[339846344,1728060640161,-151.0,0.0001646,2]
[339846345,1728060640171,-151.0,0.0001646,2]
[339846346,1728060640181,-151.0,0.0001646,2]
[339846347,1728060640190,-151.0,0.0001646,2]
[339846348,1728060640199,-151.0,0.0001646,2]
[339846349,1728060640210,-151.0,0.0001646,2]
[339846350,1728060640219,-151.0,0.0001646,2]
[339846351,1728060640229,-348.24533569,0.0001646,2]
[339846352,1728060640242,-491.96311031,0.0001646,2]
[339846353,1728060640251,-840.208446,0.0001646,2]
[339846354,1728060640261,-182.65246,0.0001646,2]
[339846355,1728060640271,-182.65246,0.0001646,2]
[339846356,1728060640281,-7806.66056632,0.0001646,2]
[339846358,1728060640290,-151.0,0.0001647,2]
[339846359,1728060640300,-151.0,0.0001647,2]
[339846360,1728060640310,-151.0,0.0001647,2]
[339846361,1728060640319,-151.0,0.0001647,2]
[339846362,1728060640329,-272.178325,0.0001647,2]
[339846369,1728060640522,-152.915298,0.0001647,2]
[339846370,1728060640536,-151.0,0.0001647,2]
[339846371,1728060640546,-152.726908,0.0001647,2]
[339846372,1728060640556,-152.726908,0.0001647,2]
[339846373,1728060640566,-151.0,0.0001647,2]
[339846374,1728060640575,-180.501106,0.0001647,2]
[339846375,1728060640586,-180.501106,0.0001647,2]
[339846376,1728060640597,-151.0,0.0001647,2]
[339846377,1728060640608,-153.184812,0.0001647,2]
[339846378,1728060640618,-3000.0,0.0001647,2]
[339846379,1728060640629,-151.0,0.0001647,2]
[339846380,1728060640639,-1123.12849437,0.0001647,2]
[339846381,1728060640652,-674.80666933,0.0001647,2]
[339846382,1728060640665,-202.0648363,0.0001647,2]
[339846383,1728060640676,-277.96429754,0.0001647,2]
[339846384,1728060640701,-1722.03570246,0.0001647,2]
[339846385,1728060640711,-151.0,0.0001647,2]
[339846386,1728060640722,-151.0,0.0001647,2]
[339846387,1728060640731,-184.26414,0.0001647,2]
[339846388,1728060640742,-242.443224,0.0001647,2]
[339846389,1728060640756,-277.823751,0.0001647,2]
[339846390,1728060640765,-277.823751,0.0001647,2]
[339846391,1728060640774,-500.0,0.00016473,2]
[339846392,1728060640783,-500.94167589,0.00016473,2]
[339846393,1728060640792,-500.0,0.00016473,2]
[339846394,1728060640802,-500.0,0.00016473,2]
[339846395,1728060640811,-500.0,0.00016473,2]
[339846396,1728060640820,-500.0,0.00016473,2]
[339846397,1728060640831,-172.69367309,0.00016473,2]
[339846398,1728060640842,-500.0,0.00016473,2]
[339846399,1728060640853,-500.0,0.00016473,2]
[339846400,1728060640862,-500.75572464,0.00016473,2]
[339846401,1728060640872,-500.93197883,0.00016473,2]
[339846402,1728060640881,-500.0,0.00016473,2]
[339846403,1728060640891,-501.00360095,0.00016473,2]
[339846404,1728060640900,-500.17126502,0.00016473,2]
[339846405,1728060640910,-500.0,0.00016473,2]
[339846406,1728060640920,-500.0,0.00016473,2]
[339846407,1728060640929,-3000.0,0.0001648,2]
[339846408,1728060640940,-3000.0,0.0001649,2]
[339846409,1728060640949,-150.112233,0.000165,2]
[339846410,1728060640959,-3000.0,0.000165,2]
[339846411,1728060640968,-3000.0,0.0001651,2]
[339846412,1728060640977,-1067.78001623,0.0001651,2]
[339846413,1728060640987,-3000.0,0.0001652,2]
[339846414,1728060640995,-3000.0,0.0001653,2]
[339846415,1728060641005,-28945.1729164,0.0001653,2]
[339846416,1728060641014,-219.597908,0.0001653,2]
[339846417,1728060641023,-272.778424,0.0001653,2]
[339846418,1728060641032,-151.0,0.0001653,2]
[339846419,1728060641041,-240.83536035,0.0001653,2]
[339846420,1728060641050,-840.208446,0.0001653,2]
[339846421,1728060641059,-840.208446,0.0001653,2]
[339846422,1728060641068,-182.65246,0.0001653,2]
[339846423,1728060641077,-182.65246,0.0001653,2]
[339846424,1728060641086,-1095.244682,0.0001653,2]
[339846425,1728060641096,-1095.244682,0.0001653,2]
[339846426,1728060641105,-151.0,0.00016539,2]
[339846427,1728060641114,-151.0,0.00016539,2]
[339846428,1728060641124,-151.0,0.00016539,2]
[339846429,1728060641134,-3377.485513,0.0001654,2]
[339846430,1728060641143,-2000.0,0.00016546,2]
[339846431,1728060641152,-8581.04690301,0.0001659,2]
[339846432,1728060641166,-6725.01062209,0.0001659,2]
[339846433,1728060641176,-7806.66056632,0.0001659,2]
[339846434,1728060641185,-150.112233,0.000166,2]
[339846435,1728060641194,-151.0,0.000166,2]
[339846436,1728060641203,-2000.0,0.00016609,2]
[339846437,1728060641213,-2000.0,0.00016609,2]
[339846438,1728060641221,-2000.0,0.00016609,2]
[339846439,1728060641231,-2000.0,0.00016609,2]
[339846440,1728060641239,-738.59315664,0.00016609,2]
[339846441,1728060641249,-1095.244682,0.00016609,2]
[339846442,1728060641258,-16597.15370558,0.00016609,2]
[339846443,1728060641597,-1095.244682,0.00016609,2]
[339846444,1728060641607,-32014.33570299,0.00016609,2]
[339846445,1728060641618,-1000.0,0.0001661,2]
[339846446,1728060641630,-1000.0,0.0001661,2]
[339846447,1728060641639,-500.0,0.0001661,2]
[339846448,1728060641649,-1000.0,0.0001661,2]
[339846449,1728060641658,-1000.0,0.0001661,2]
[339846450,1728060641667,-1000.0,0.0001661,2]
[339846451,1728060641676,-1000.0,0.0001661,2]
[339846452,1728060641687,-1000.0,0.0001661,2]
[339846453,1728060641697,-151.0,0.0001661,2]
[339846454,1728060641708,-151.0,0.0001661,2]
[339846455,1728060641717,-151.0,0.00016618,2]
[339846456,1728060641727,-151.0,0.00016618,2]
[339846457,1728060641738,-151.0,0.00016618,2]
[339846458,1728060641752,-277.823751,0.00016618,2]
[339846459,1728060641762,-277.823751,0.00016618,2]
[339846460,1728060641771,-151.0,0.00016618,2]
[339846461,1728060641782,-397.125324,0.00016618,2]
[339846462,1728060641795,-397.125324,0.00016618,2]
[339846463,1728060641806,-151.0,0.00016618,2]
[339846464,1728060641816,-151.0,0.00016618,2]
[339846465,1728060641827,-151.0,0.0001668,2]
[339846466,1728060641839,-840.208446,0.0001668,2]
[339846467,1728060641849,-840.208446,0.0001668,2]
[339846468,1728060641860,-182.65246,0.0001668,2]
[339846469,1728060641870,-182.65246,0.0001668,2]
[339846470,1728060641886,-7806.66056632,0.0001668,2]
[339846471,1728060641897,-28945.1729164,0.0001668,2]
[339846472,1728060641910,-151.0,0.0001669,2]
[339846473,1728060641920,-165.915027,0.0001669,2]
[339846474,1728060641930,-165.915027,0.0001669,2]
[339846475,1728060641945,-151.0,0.0001669,2]
[339846476,1728060641954,-151.0,0.0001669,2]
[339846477,1728060641964,-151.0,0.0001669,2]
[339846478,1728060641973,-4499.718694,0.0001669,2]
[339846479,1728060641982,-4499.718694,0.0001669,2]
[339846480,1728060641991,-838.87056,0.0001669,2]
[339846481,1728060642000,-838.87056,0.0001669,2]
[339846482,1728060642009,-3850.604171,0.0001669,2]
[339846483,1728060642019,-3850.604171,0.0001669,2]
[339846484,1728060642028,-151.0,0.0001669,2]
[339846485,1728060642037,-210.297995,0.0001669,2]
[339846486,1728060642046,-210.297995,0.0001669,2]
[339846487,1728060642055,-685.575124,0.0001669,2]
[339846488,1728060642064,-685.575124,0.0001669,2]
[339846489,1728060642073,-151.0,0.0001669,2]
[339846490,1728060642083,-151.0,0.0001669,2]
[339846491,1728060642092,-151.0,0.0001669,2]
[339846492,1728060642102,-167.22213,0.0001669,2]
[339846493,1728060642111,-151.0,0.0001669,2]
[339846494,1728060642120,-151.0,0.0001669,2]
[339846495,1728060642133,-151.0,0.0001669,2]
[339846496,1728060642142,-4418.0,0.000167,2]
[339846497,1728060642151,-150.112233,0.000167,2]
[339846498,1728060642160,-299.1,0.00016712,2]
[339846499,1728060642170,-739.0,0.00016712,2]
[339846500,1728060642179,-151.0,0.00016736,2]
[339846501,1728060642188,-7806.66056632,0.00016737,2]
[339846502,1728060642198,-500.0,0.00016747,2]
[339846503,1728060642208,-500.0,0.00016747,2]
[339846504,1728060642217,-500.0,0.00016747,2]
[339846505,1728060642226,-1500.0,0.00016747,2]
[339846506,1728060642235,-1000.0,0.00016747,2]
[339846507,1728060642244,-1000.0,0.00016747,2]
[339846508,1728060642254,-272.062285,0.00016747,2]
[339846509,1728060642263,-235.962846,0.00016747,2]
[339846510,1728060642272,-151.0,0.00016747,2]
[339846511,1728060642281,-151.0,0.00016747,2]
[339846512,1728060642290,-1095.244682,0.00016747,2]
[339846513,1728060642300,-1095.244682,0.00016747,2]
[339846514,1728060642309,-587.0,0.00016853,2]
[339846515,1728060642318,-299.1,0.00016986,2]
[339846516,1728060642327,-739.0,0.00016986,2]
[339846517,1728060642336,-587.0,0.00016991,2]
[339846518,1728060642345,-1000.0,0.00017,17]
[339846519,1728060642354,-152.726908,0.00017,2]
[339846520,1728060642365,-152.726908,0.00017,2]
[339846521,1728060642376,-180.501106,0.00017,2]
[339846522,1728060642385,-180.501106,0.00017,2]
[339846523,1728060642394,-151.0,0.00017,2]
[339846524,1728060642403,-28945.1729164,0.00017141,2]
[339846525,1728060642413,-412.8502912,0.00017151,2]
[339846526,1728060642423,-412.8502912,0.00017151,2]
[339846527,1728060642431,-412.8502912,0.00017151,2]
[339846528,1728060642440,-412.8502912,0.00017151,2]
[339846529,1728060642449,-412.8502912,0.00017151,2]
[339846530,1728060642458,-412.8502912,0.00017151,2]
[339846531,1728060642467,-412.8502912,0.00017151,2]
[339846532,1728060642476,-299.1,0.0001726,2]
[339846533,1728060642485,-739.0,0.0001726,2]
[339846534,1728060642495,-739.0,0.0001726,2]
[339846535,1728060642505,-299.1,0.00017534,2]
[339846536,1728060642514,-739.0,0.00017534,2]
[339846537,1728060642523,-2003.54744914,0.000176,2]
[339846538,1728060642532,-151.0,0.000176,2]
[339846539,1728060642541,-840.208446,0.000176,2]
[339846540,1728060642550,-840.208446,0.000176,2]
[339846541,1728060642559,-182.65246,0.000176,2]
[339846542,1728060642568,-182.65246,0.000176,2]
[339846543,1728060642577,-151.0,0.00017798,2]
[339846544,1728060642587,-159.137,0.00017798,2]
[339846545,1728060642596,-255.47526,0.00017798,2]
[339846546,1728060642605,-299.1,0.00017808,2]
[339846547,1728060642614,-739.0,0.00017808,2]
[339846548,1728060642624,-181.687499,0.00017808,2]
[339846549,1728060642633,-181.687499,0.00017808,2]
[339846550,1728060642642,-181.687499,0.00017808,2]
[339846551,1728060642652,-181.687499,0.00017808,2]
[339846552,1728060642662,-500.0,0.00017833,2]
[339846553,1728060642671,-500.0,0.00017833,2]
[339846554,1728060642680,-500.0,0.00017833,2]
[339846555,1728060642689,-500.0,0.00017833,2]
[339846556,1728060642699,-7806.66056632,0.00017852,2]
[339846557,1728060642707,-6187.80077212,0.00017852,2]
[339846558,1728060642720,-1618.8597942,0.00017852,2]
[339846559,1728060642730,-151.0,0.00017862,2]
[339846560,1728060642739,-151.0,0.00017862,2]
[339846561,1728060642752,-151.0,0.00017862,2]
[339846562,1728060642761,-277.823751,0.00017862,2]
[339846563,1728060642771,-277.823751,0.00017862,2]
[339846564,1728060642780,-151.0,0.00017862,2]
[339846565,1728060642790,-397.125324,0.00017862,2]
[339846566,1728060642799,-397.125324,0.00017862,2]
[339846567,1728060642808,-151.0,0.00017862,2]
[339846568,1728060642818,-151.0,0.00017862,2]
[339846569,1728060642827,-210.297995,0.00017862,2]
[339846570,1728060642837,-210.297995,0.00017862,2]
[339846571,1728060642846,-685.575124,0.00017862,2]
[339846572,1728060642855,-685.575124,0.00017862,2]
[339846573,1728060642865,-151.0,0.00017862,2]
[339846574,1728060642875,-151.0,0.00017862,2]
[339846575,1728060642884,-151.0,0.00017862,2]
[339846576,1728060642894,-151.0,0.00017862,2]
[339846577,1728060642904,-181.687499,0.00017862,2]
[339846578,1728060642913,-181.687499,0.00017862,2]
[339846579,1728060642922,-7806.66056632,0.00017863,2]
[339846580,1728060642934,-17495.38346331,0.00017873,7]
[339846581,1728060642944,-151.0,0.00017873,2]
[339846582,1728060642954,-151.0,0.00017873,2]
[339846583,1728060642964,-151.0,0.00017873,2]
[339846584,1728060642973,-151.0,0.00017873,2]
[339846585,1728060642982,-165.915027,0.00017873,2]
[339846586,1728060642992,-165.915027,0.00017873,2]
[339846587,1728060643000,-151.0,0.00017873,2]
[339846588,1728060643009,-234.421665,0.00017873,2]
[339846589,1728060643018,-151.0,0.00017873,2]
[339846590,1728060643028,-4499.718694,0.00017873,2]
[339846591,1728060643038,-4499.718694,0.00017873,2]
[339846592,1728060643047,-838.87056,0.00017873,2]
[339846593,1728060643057,-838.87056,0.00017873,2]
[339846594,1728060643066,-1056.92089466,0.00017873,2]
[339846595,1728060643078,-2793.68327634,0.00017873,2]
[339846596,1728060643087,-3105.80145738,0.00017873,2]
[339846599,1728060643099,-744.80271362,0.00017873,2]
[339846601,1728060643108,-151.0,0.00017873,2]
[339846604,1728060643118,-840.208446,0.00017873,2]
[339846608,1728060643130,-840.208446,0.00017873,2]
[339846611,1728060643139,-182.65246,0.00017873,2]
[339846613,1728060643149,-182.65246,0.00017873,2]
[339846615,1728060643159,-1095.244682,0.00017873,2]
[339846616,1728060643168,-1095.244682,0.00017873,2]
[339846617,1728060643178,-739.0,0.00017951,2]
[339846618,1728060643187,-7806.66056632,0.0001796,2]
[339846619,1728060643198,-151.0,0.0001797,2]
[339846620,1728060643207,-151.0,0.0001797,2]
[339846621,1728060643218,-397.125324,0.0001797,2]
[339846622,1728060643227,-397.125324,0.0001797,2]
[339846623,1728060643238,-151.0,0.0001797,2]
[339846624,1728060643250,-202.640469,0.0001797,2]
[339846625,1728060643259,-210.297995,0.0001797,2]
[339846626,1728060643268,-210.297995,0.0001797,2]
[339846627,1728060643278,-685.575124,0.0001797,2]
[339846628,1728060643287,-685.575124,0.0001797,2]
[339846629,1728060643297,-151.0,0.0001797,2]
[339846630,1728060643307,-151.0,0.0001797,2]
[339846632,1728060643318,-151.0,0.0001797,2]
[339846633,1728060643329,-151.0,0.0001797,2]